fUST/lending_fUST_20250118
["ID","MTS","AMOUNT","RATE_DAILY","PERIOD"]
[349482684,1737208233694,-215.04,0.00021917,3]
[349482685,1737208233706,-500.0,0.00021917,3]
[349482686,1737208233718,-500.0,0.00021917,3]
[349482687,1737208233730,-500.0,0.00021917,3]
[349482688,1737208233741,-500.0,0.00021917,3]
[349482689,1737208233752,-552.6792186,0.00021917,2]
[349482690,1737208233763,-500.0,0.00021917,3]
[349482691,1737208233776,-511.45311852,0.00021917,3]
[349482692,1737208233789,-501.1622493,0.00021917,3]
[349482693,1737208233802,-500.0,0.00021917,3]
[349482694,1737208233813,-502.87297593,0.00021917,3]
[349482695,1737208233825,-500.0,0.00021917,3]
[349482696,1737208233836,-500.0,0.00021917,3]
[349482697,1737208233846,-500.92389296,0.00021917,3]
[349482698,1737208233857,-502.03985734,0.00021917,3]
[349482699,1737208233869,-501.79253029,0.00021917,3]
[349482700,1737208233880,-500.0,0.00021917,3]
[349482701,1737208233891,-501.40407293,0.00021917,3]
[349482702,1737208233902,-500.0,0.00021917,3]
[349482703,1737208233914,-500.0,0.00021917,3]
[349482704,1737208233925,-500.0,0.00021917,3]
[349482705,1737208233937,-502.78168283,0.00021917,3]
[349482706,1737208233947,-500.0,0.00021917,3]
[349482707,1737208233960,-500.49834496,0.00021917,3]
[349482708,1737208233971,-501.04933036,0.00021917,3]
[349482709,1737208233982,-503.46838045,0.00021917,3]
[349482710,1737208233993,-366.39225246,0.00021917,3]
[349482711,1737208234013,-501.51069298,0.00021917,3]
[349482712,1737208234027,-2619.58,0.00021917,3]
[349482713,1737208234042,-503.64708951,0.00021917,3]
[349482714,1737208234054,-500.0,0.00021917,3]
[349482715,1737208234064,-500.0,0.00021917,3]
[349482716,1737208234079,-500.0,0.00021917,3]
[349482717,1737208234091,-502.2425512,0.00021917,3]
[349482718,1737208234104,-504.16144099,0.00021917,3]
[349482719,1737208234117,-501.61344047,0.00021917,3]
[349482720,1737208234129,-504.16529978,0.00021917,3]
[349482721,1737208234143,-500.0,0.00021917,3]
[349482722,1737208234155,-503.52192005,0.00021917,3]
[349482723,1737208234167,-500.0,0.00021917,3]
[349482724,1737208234180,-500.0,0.00021917,3]
[349482725,1737208234192,-500.0,0.00021917,3]
[349482726,1737208234206,-505.68102948,0.00021917,3]
[349482727,1737208234219,-500.0,0.00021917,3]
[349482728,1737208234234,-500.0,0.00021917,3]
[349482729,1737208234246,-500.0,0.00021917,3]
[349482730,1737208234258,-500.0,0.00021917,2]
[349482731,1737208234268,-500.0,0.00021917,3]
[349482732,1737208234278,-500.0,0.00021917,3]
[349482733,1737208234291,-357.16358434,0.00021917,3]
[349482734,1737208234302,-500.0,0.00021917,3]
[349482735,1737208234312,-500.0,0.00021917,3]
[349482736,1737208234323,-500.0,0.00021917,3]
[349482737,1737208234335,-500.0,0.00021917,3]
[349482738,1737208234348,-500.0,0.00021917,3]
[349482739,1737208234361,-500.0,0.00021917,3]
[349482740,1737208234375,-500.0,0.00021917,3]
[349482741,1737208234390,-500.0,0.00021917,3]
[349482742,1737208234403,-501.55790004,0.00021917,3]
[349482743,1737208234416,-500.0,0.00021917,3]
[349482744,1737208234429,-500.0,0.00021917,3]
[349482745,1737208234440,-500.0,0.00021917,3]
[349482746,1737208234452,-500.0,0.00021917,3]
[349482747,1737208234465,-154.02,0.00021917,3]
[349482748,1737208234476,-500.0,0.00021917,3]
[349482749,1737208234490,-645.87393586,0.00021917,3]
[349482750,1737208234508,-84.86606414,0.00021917,3]
[349482751,1737208234522,-500.0,0.00021917,3]
[349482752,1737208234535,-500.0,0.00021917,3]
[349482753,1737208234557,-501.48790389,0.00021917,3]
[349482754,1737208234569,-500.0,0.00021917,3]
[349482755,1737208234581,-500.0,0.00021917,3]
[349482756,1737208234596,-502.81781194,0.00021917,3]
[349482757,1737208234608,-502.07190775,0.00021917,3]
[349482758,1737208234620,-2671.76,0.00021917,3]
[349482759,1737208234632,-500.0,0.00021917,3]
[349482760,1737208234647,-502.91058542,0.00021917,3]
[349482761,1737208234660,-500.0,0.00021917,3]
[349482762,1737208234673,-500.0,0.00021917,3]
[349482763,1737208234686,-500.0,0.00021917,3]
[349482764,1737208234699,-501.73449202,0.00021917,3]
[349482765,1737208234712,-500.0,0.00021917,3]
[349482766,1737208234724,-500.0,0.00021917,3]
[349482767,1737208234737,-501.85567727,0.00021917,3]
[349482768,1737208234750,-500.0,0.00021917,3]
[349482769,1737208234762,-500.0,0.00021917,3]
[349482770,1737208234774,-500.0,0.00021917,3]
[349482771,1737208234787,-1019.89,0.00021917,3]
[349482772,1737208234807,-500.0,0.00021917,3]
[349482773,1737208234819,-643.8,0.00021917,3]
[349482774,1737208234832,-500.0,0.00021917,3]
[349482775,1737208234844,-691.39,0.00021917,3]
[349482776,1737208234856,-500.0,0.00021917,3]
[349482777,1737208234868,-500.0,0.00021917,3]
[349482778,1737208234880,-500.0,0.00021917,3]
[349482779,1737208234893,-500.0,0.00021917,3]
[349482780,1737208234905,-500.0,0.00021917,3]
[349482781,1737208234916,-500.0,0.00021917,3]
[349482782,1737208234927,-500.0,0.00021917,3]
[349482783,1737208234939,-500.0,0.00021917,3]
[349482784,1737208234950,-75.14949406,0.00021917,3]
[349482785,1737208234963,-431.96050594,0.00021917,3]
[349482786,1737208234974,-500.0,0.00021917,3]
[349482787,1737208234985,-500.0,0.00021917,3]
[349482788,1737208234996,-184.92910724,0.00021954,2]
[349482789,1737208235007,-499.0,0.00022053,2]
[349482790,1737208235018,-516.42,0.00022054,3]
[349482791,1737208235028,-500.0,0.00022054,3]
[349482792,1737208235043,-230.35,0.00022054,3]
[349482793,1737208235054,-500.0,0.00022054,3]
[349482794,1737208235066,-247.80377849,0.00022054,2]
[349482795,1737208235076,-568.97,0.00022054,2]
[349482796,1737208235088,-500.0,0.00022054,3]
[349482797,1737208235226,-500.0,0.00022054,3]
[349482798,1737208235239,-2619.58,0.00022054,3]
[349482799,1737208235249,-249.98676208,0.00022054,3]
[349482800,1737208235258,-500.0,0.00022054,3]
[349482801,1737208235269,-730.74,0.00022054,3]
[349482802,1737208235278,-500.0,0.00022054,3]
[349482803,1737208235288,-500.0,0.00022054,3]
[349482804,1737208235301,-2671.76,0.00022054,3]
[349482805,1737208235312,-500.0,0.00022054,3]
[349482806,1737208235321,-1019.89,0.00022054,3]
[349482807,1737208235335,-643.8,0.00022054,3]
[349482808,1737208235345,-691.39,0.00022054,3]
[349482809,1737208235355,-500.0,0.00022054,3]
[349482810,1737208235365,-500.0,0.00022054,3]
[349482811,1737208235374,-500.0,0.00022054,3]
[349482812,1737208235383,-585.39961022,0.00022191,3]
[349482813,1737208235393,-568.97,0.00022191,2]
[349482814,1737208235403,-500.0,0.00022191,3]
[349482815,1737208235412,-2619.58,0.00022191,3]
[349482816,1737208235422,-730.74,0.00022191,3]
[349482817,1737208235432,-500.0,0.00022191,3]
[349482818,1737208235442,-2671.76,0.00022191,3]
[349482819,1737208235452,-500.0,0.00022191,3]
[349482820,1737208235467,-1019.89,0.00022191,3]
[349482821,1737208235477,-643.8,0.00022191,3]
[349482822,1737208235487,-691.39,0.00022191,3]
[349482823,1737208235496,-180.69066429,0.00022191,3]
[349482824,1737208235506,-562.25,0.00022191,3]
[349482825,1737208235515,-729623.72152855,0.000222,2]
[349482826,1737208235527,-8704.29994221,0.000222,2]
[349482834,1737208238656,-12557.88734145,0.000222,2]
[349482841,1737208238714,-4243.80974901,0.000222,2]
[349482844,1737208238726,-1722.3396068,0.000222,2]
[349482846,1737208238737,-1497.359927,0.000222,2]
[349482856,1737208240878,-16207.72925544,0.000222,2]
[349482857,1737208240989,-51939.99999998,0.000222,2]
[349482858,1737208241000,-5205.95187397,0.000222,2]
[349482891,1737208246902,-500.0,0.00022074,2]
[349482892,1737208246912,-2830.9,0.000222,2]
[349482899,1737208858056,10000.0,0.0001675,2]
[349482900,1737208879723,10000.0,0.0001675,2]
[349482901,1737208898865,10000.0,0.0001675,2]
[349482902,1737208915216,2554.0438018,0.0001675,2]
[349482903,1737208918803,166.840771,0.00013973,2]
[349482905,1737208931868,10000.0,0.000167,2]
[349482907,1737208993738,2132.32047755,0.00016583,2]
[349482908,1737209016726,2460.30275256,0.00016583,2]
[349482926,1737209308233,2170.0,0.00025,120]
[349482961,1737209436168,-7445.9561982,0.0001675,2]
[349482962,1737209436178,-456.15510209,0.000189,2]
[349482963,1737209436187,-500.0,0.00019009,2]
[349482964,1737209436197,-250.0,0.00019747,2]
[349482965,1737209436207,-300.0,0.00019803,2]
[349482966,1737209436217,-5408.0653693,0.00019804,2]
[349482967,1737209436226,-646.70272818,0.00019986,2]
[349482968,1737209436236,-3000.0,0.0002,2]
[349482969,1737209436246,-3093.0,0.0002,2]
[349482970,1737209436256,-151.8587153,0.0002,2]
[349482971,1737209436266,-3000.0,0.0002001,2]
[349482972,1737209436287,-3000.0,0.0002002,2]
[349482973,1737209436297,-4777.886675,0.0002003,2]
[349482974,1737209436307,-3327.680465,0.00020086,2]
[349482975,1737209436319,-500.0,0.00020105,2]
[349482976,1737209436329,-646.70272817,0.0002054,2]
[349482977,1737209436339,-167.994604,0.00021078,2]
[349482978,1737209436348,-420.0,0.00021568,2]
[349482979,1737209436358,-3093.0,0.000216,4]
[349482980,1737209436369,-236.927,0.00021817,2]
[349482981,1737209436378,-562.05723409,0.00021917,3]
[349482982,1737209436388,-271.20412893,0.00021917,3]
[349482983,1737209436399,-500.0,0.00021917,3]
[349482984,1737209436409,-502.67081463,0.00021917,3]
[349482985,1737209436418,-500.0,0.00021917,3]
[349482986,1737209436429,-500.0,0.00021917,3]
[349482987,1737209436438,-500.0,0.00021917,3]
[349482988,1737209436449,-500.0,0.00021917,3]
[349482989,1737209436459,-181.64613855,0.00021917,3]
[349482990,1737209436469,-500.0,0.00021917,3]
[349482991,1737209436479,-500.0,0.00021917,3]
[349482992,1737209436489,-500.0,0.00021917,2]
[349482993,1737209436498,-500.0,0.00021917,3]
[349482994,1737209436508,-500.0,0.00021917,3]
[349482995,1737209436518,-2292.13,0.00021917,3]
[349482996,1737209436527,-639.39,0.00021917,3]
[349482997,1737209436537,-500.0,0.00021917,3]
[349482998,1737209436547,-2337.79,0.00021917,3]
[349482999,1737209436557,-500.0,0.00021917,3]
[349483001,1737209436566,-500.0,0.00021917,3]
[349483003,1737209436576,-500.0,0.00021917,3]
[349483005,1737209436586,-500.0,0.00021917,3]
[349483007,1737209436595,-500.0,0.00021917,3]
[349483009,1737209436609,-500.0,0.00021917,3]
[349483011,1737209436619,-500.0,0.00021917,3]
[349483012,1737209436629,-500.0,0.00021917,3]
[349483013,1737209436639,-604.97,0.00021917,3]
[349483014,1737209436650,-500.0,0.00021917,3]
[349483015,1737209436660,-563.33,0.00021917,3]
[349483016,1737209436670,-500.0,0.00021917,3]
[349483017,1737209436683,-892.41,0.00021917,3]
[349483018,1737209436693,-500.0,0.00021917,3]
[349483019,1737209436703,-172.12,0.00021917,3]
[349483020,1737209436714,-500.0,0.00021917,3]
[349483021,1737209436724,-473.05925283,0.00021917,3]
[349483022,1737209436735,-500.0,0.00022054,2]
[349483023,1737209436744,-500.0,0.00022054,3]
[349483024,1737209436754,-2292.13,0.00022054,3]
[349483025,1737209436764,-639.39,0.00022054,3]
[349483026,1737209436774,-2337.79,0.00022054,3]
[349483027,1737209436784,-500.0,0.00022054,3]
[349483028,1737209436794,-500.0,0.00022054,3]
[349483029,1737209436804,-500.0,0.00022054,3]
[349483030,1737209436813,-604.97,0.00022054,3]
[349483031,1737209436823,-563.33,0.00022054,3]
[349483032,1737209436832,-500.0,0.00022054,3]
[349483033,1737209436842,-892.41,0.00022054,3]
[349483034,1737209436852,-166.840771,0.00022174,2]
[349483035,1737209436862,-500.0,0.00022191,2]
[349483036,1737209436873,-420.95693496,0.00022191,3]
[349483037,1737209436883,-2292.13,0.00022191,3]
[349483038,1737209436893,-639.39,0.00022191,3]
[349483039,1737209436903,-2337.79,0.00022191,3]
[349483040,1737209436914,-500.0,0.00022191,3]
[349483041,1737209436924,-500.0,0.00022191,3]
[349483042,1737209436935,-500.0,0.00022191,3]
[349483043,1737209436945,-604.97,0.00022191,3]
[349483044,1737209436955,-563.33,0.00022191,3]
[349483045,1737209436965,-500.0,0.00022191,3]
[349483046,1737209436975,-892.41,0.00022191,3]
[349483047,1737209436983,-451616.95243407,0.000222,2]
[349483048,1737209436995,-22653.11184152,0.000222,2]
[349483049,1737209437002,-1100.55759307,0.000222,2]
[349483050,1737209437009,-2070.0,0.00022215,2]
[349483051,1737209437017,-536.0,0.00022215,2]
[349483052,1737209437024,-1177.6478812,0.00022215,2]
[349483053,1737209437034,-477.58602924,0.00022215,2]
[349483054,1737209437045,-655.76608956,0.00022215,2]
[349483055,1737209437064,-263.16931276,0.00022215,2]
[349483056,1737209437076,-131.83068724,0.00022215,2]
[349483057,1737209437084,-166.70221923,0.0002222,2]
[349483058,1737209437092,-500.0,0.00022297,2]
[349483059,1737209437099,-3000.0,0.000223,2]
[349483060,1737209437106,-3000.0,0.0002231,2]
[349483061,1737209437114,-415.144,0.0002232,2]
[349483062,1737209437123,-3000.0,0.0002232,2]
[349483063,1737209437131,-499.0,0.00022327,2]
[349483064,1737209437140,-500.0,0.00022328,2]
[349483065,1737209437148,-2292.13,0.00022328,3]
[349483066,1737209437156,-639.39,0.00022328,3]
[349483067,1737209437163,-2337.79,0.00022328,3]
[349483068,1737209437170,-500.0,0.00022328,3]
[349483069,1737209437179,-500.0,0.00022328,3]
[349483070,1737209437187,-500.0,0.00022328,3]
[349483071,1737209437194,-604.97,0.00022328,3]
[349483072,1737209437201,-563.33,0.00022328,3]
[349483073,1737209437210,-500.0,0.00022328,3]
[349483074,1737209437219,-892.41,0.00022328,3]
[349483075,1737209437226,-3000.0,0.0002233,2]
[349483076,1737209437233,-3000.0,0.0002234,2]
[349483077,1737209437242,-3000.0,0.0002235,2]
[349483078,1737209437251,-24.38639949,0.0002236,2]
[349483079,1737209437262,-2975.61360051,0.0002236,2]
[349483080,1737209437269,-3000.0,0.0002237,2]
[349483081,1737209437278,-3000.0,0.0002238,2]
[349483082,1737209437286,-980.1863997,0.0002239,2]
[349483089,1737209437990,-646.70272817,0.00021095,2]
[349483090,1737209438000,-500.0,0.00021917,3]
[349483091,1737209438010,-2019.8136003,0.0002239,2]
[349483092,1737209438020,-3000.0,0.000224,2]
[349483093,1737209438031,-2333.48367153,0.0002241,2]
[349483154,1737209440154,-500.0,0.00021917,3]
[349483155,1737209440165,-500.0,0.00021917,3]
[349483156,1737209440175,-666.51632847,0.0002241,2]
[349483157,1737209440185,-158.31367153,0.0002242,2]
[349483175,1737209442918,-646.70272817,0.00021649,2]
[349483176,1737209442926,-0.15558276,0.00021917,3]
[349483177,1737209442935,-499.84441724,0.00021917,3]
[349483178,1737209442944,-150.61067875,0.0002242,2]
[349483179,1737209443015,-2691.07564972,0.0002242,2]
[349483180,1737209443023,-1335.07267182,0.0002243,2]
[349483190,1737209445874,-1664.92732818,0.0002243,2]
[349483191,1737209445884,-1460.99995512,0.0002244,2]
[349483192,1737209445896,-1539.00004488,0.0002244,2]
[349483193,1737209445906,-3000.0,0.0002245,2]
[349483194,1737209445915,-3000.0,0.0002246,2]
[349483195,1737209445925,-500.0,0.00022465,2]
[349483196,1737209445934,-2292.13,0.00022465,3]
[349483197,1737209445943,-639.39,0.00022465,3]
[349483198,1737209445952,-2337.79,0.00022465,3]
[349483199,1737209445962,-500.0,0.00022465,3]
[349483200,1737209445971,-202.60961704,0.00022465,3]
[349483201,1737209445981,-500.0,0.00022465,3]
[349483203,1737209445990,-604.97,0.00022465,3]
[349483205,1737209445999,-563.33,0.00022465,3]
[349483206,1737209446008,-500.0,0.00022465,3]
[349483207,1737209446018,-892.41,0.00022465,3]
[349483208,1737209446027,-3000.0,0.0002247,2]
[349483209,1737209446037,-3000.0,0.0002248,2]
[349483210,1737209446046,-3000.0,0.0002249,2]
[349483211,1737209446056,-3000.0,0.000225,2]
[349483212,1737209446066,-933.85481808,0.0002251,2]
[349483213,1737209446078,-2066.14518192,0.0002251,2]
[349483214,1737209446088,-3000.0,0.0002252,2]
[349483215,1737209446099,-3000.0,0.0002253,2]
[349483216,1737209446108,-3000.0,0.0002254,2]
[349483217,1737209446118,-3000.0,0.0002255,2]
[349483218,1737209446127,-3000.0,0.0002256,2]
[349483219,1737209446139,-3000.0,0.0002257,2]
[349483220,1737209446148,-3000.0,0.0002258,2]
[349483221,1737209446158,-3000.0,0.0002259,2]
[349483222,1737209446168,-3000.0,0.000226,2]
[349483223,1737209446177,-500.0,0.00022602,2]
[349483224,1737209446187,-2292.13,0.00022602,3]
[349483225,1737209446197,-639.39,0.00022602,3]
[349483226,1737209446207,-2337.79,0.00022602,3]
[349483227,1737209446217,-500.0,0.00022602,3]
[349483228,1737209446226,-500.0,0.00022602,3]
[349483229,1737209446349,-604.97,0.00022602,3]
[349483230,1737209446360,-563.33,0.00022602,3]
[349483231,1737209446370,-500.0,0.00022602,3]
[349483232,1737209446379,-892.41,0.00022602,3]
[349483233,1737209446389,-500.0,0.00022608,2]
[349483234,1737209446399,-500.0,0.00022608,2]
[349483235,1737209446409,-500.0,0.00022608,2]
[349483236,1737209446419,-500.0,0.00022608,2]
[349483237,1737209446428,-500.0,0.00022608,2]
[349483238,1737209446437,-375.50037106,0.00022608,2]
[349483239,1737209446449,-124.49962894,0.00022608,2]
[349483240,1737209446459,-496.90060877,0.00022608,2]
[349483241,1737209446468,-500.0,0.00022608,2]
[349483242,1737209446477,-197.51313085,0.00022608,2]
[349483243,1737209446487,-650.85779233,0.00022608,2]
[349483244,1737209446496,-627.57026518,0.00022608,2]
[349483245,1737209446505,-500.0,0.00022608,2]
[349483246,1737209446515,-500.0,0.00022608,2]
[349483247,1737209446524,-500.0,0.00022608,2]
[349483248,1737209446535,-500.0,0.00022608,2]
[349483249,1737209446545,-500.0,0.00022608,2]
[349483250,1737209446555,-426.19202297,0.00022608,2]
[349483251,1737209446566,-500.0,0.00022608,2]
[349483252,1737209446576,-500.0,0.00022608,2]
[349483253,1737209446586,-500.0,0.00022608,2]
[349483254,1737209446596,-500.0,0.00022608,2]
[349483255,1737209446607,-257.24833068,0.00022608,2]
[349483256,1737209446622,-500.0,0.00022608,2]
[349483257,1737209446632,-601.4187818,0.00022608,2]
[349483258,1737209446643,-500.0,0.00022608,2]
[349483259,1737209446654,-500.0,0.00022608,2]
[349483260,1737209446664,-500.0,0.00022608,2]
[349483261,1737209446674,-289.81433038,0.00022608,2]
[349483262,1737209446687,-210.18566962,0.00022608,2]
[349483263,1737209446696,-70.44146082,0.00022608,2]
[349483264,1737209446708,-429.55853918,0.00022608,2]
[349483265,1737209446718,-500.0,0.00022608,2]
[349483266,1737209446728,-2406.94146082,0.0002261,2]
[349483268,1737209540974,1006.13,0.00025,120]
[349483269,1737209618379,502.0,0.000167,2]
[349483273,1737209797555,166.464111,0.00013973,2]
[349483289,1737210495663,-169.378877,0.00017207,2]
[349483290,1737210495688,-295.71847776,0.00017813,2]
[349483291,1737210495712,-500.0,0.00017913,2]
[349483292,1737210495736,-295.71847771,0.00018032,2]
[349483293,1737210495760,-295.71847771,0.00018251,2]
[349483294,1737210495783,-295.71847771,0.00018471,2]
[349483295,1737210495806,-295.71847771,0.0001869,2]
[349483296,1737210495829,-295.71847771,0.00018909,2]
[349483297,1737210495851,-500.0,0.00019009,2]
[349483298,1737210504606,199.93837415,0.0001881,2]
[349483329,1737210516943,2046.13976919,0.0002,2]
[349483334,1737210519551,357.92271517,0.00019,2]
[349483335,1737210520710,150.44584176,0.0002,7]
[349483336,1737210525629,221.19590506,0.00019178,2]
[349483360,1737210582924,500.0,0.00019009,2]
[349483363,1737210616310,304.10340139,0.000189,2]
[349483401,1737210632174,-500.0,0.00020105,2]
[349483402,1737210632184,-169.378877,0.00020334,2]
[349483403,1737210632194,-350.10756647,0.0002079,2]
[349483404,1737210632203,-300.0,0.00020999,2]
[349483405,1737210632213,-1386.73975653,0.00021,2]
[349483491,1737210643126,-1697.59401287,0.00021,2]
[349483492,1737210643137,-3157.80630276,0.00021,2]
[349483493,1737210643146,-500.0,0.00021201,2]
[349483494,1737210643156,-342.24897845,0.00021817,2]
[349483495,1737210643165,-166.70221922,0.00021899,2]
[349483496,1737210643175,-1257.16302741,0.000219,3]
[349483497,1737210643185,-154.98,0.00021917,2]
[349483498,1737210643194,-514.92166255,0.00021917,3]
[349483499,1737210643204,-500.0,0.00021917,3]
[349483500,1737210643213,-500.0,0.00021917,3]
[349483501,1737210643223,-500.0,0.00021917,3]
[349483502,1737210643233,-189.542,0.00021917,2]
[349483503,1737210643242,-321.46575511,0.00021917,3]
[349483504,1737210643252,-466.75551597,0.00021917,3]
[349483505,1737210643262,-500.0,0.00021917,3]
[349483506,1737210643271,-500.0,0.00021917,3]
[349483507,1737210643281,-500.0,0.00021917,3]
[349483508,1737210643291,-524.08044794,0.00021917,3]
[349483509,1737210643301,-500.0,0.00021917,3]
[349483510,1737210643313,-500.0,0.00021917,3]
[349483511,1737210643322,-500.0,0.00021917,3]
[349483512,1737210643331,-500.0,0.00021917,3]
[349483513,1737210643340,-500.0,0.00021917,3]
[349483514,1737210643350,-500.0,0.00021917,3]
[349483515,1737210643360,-500.0,0.00021917,3]
[349483516,1737210643369,-500.0,0.00021917,3]
[349483517,1737210643379,-500.0,0.00021917,3]
[349483518,1737210643388,-469.17660941,0.00021917,3]
[349483519,1737210643397,-500.0,0.00021917,3]
[349483520,1737210643406,-500.0,0.00021917,3]
[349483521,1737210643417,-500.0,0.00021917,2]
[349483522,1737210643427,-500.0,0.00021917,3]
[349483523,1737210643436,-500.0,0.00021917,3]
[349483524,1737210643446,-500.0,0.00021917,3]
[349483525,1737210643455,-500.0,0.00021917,3]
[349483526,1737210643464,-500.0,0.00021917,3]
[349483527,1737210643473,-500.0,0.00021917,3]
[349483528,1737210643483,-500.0,0.00021917,3]
[349483529,1737210643493,-500.0,0.00021917,3]
[349483530,1737210643502,-500.0,0.00021917,3]
[349483531,1737210643512,-500.0,0.00021917,3]
[349483532,1737210643521,-500.0,0.00021917,3]
[349483533,1737210643531,-500.0,0.00021917,3]
[349483534,1737210643541,-500.0,0.00021917,3]
[349483535,1737210643552,-500.0,0.00021917,3]
[349483536,1737210643562,-492.44840629,0.00021917,3]
[349483537,1737210643572,-500.0,0.00021917,3]
[349483538,1737210643582,-500.0,0.00021917,3]
[349483539,1737210643593,-500.0,0.00021917,3]
[349483540,1737210643603,-500.0,0.00021917,3]
[349483541,1737210643612,-500.0,0.00021917,3]
[349483542,1737210643623,-521.66,0.00021917,3]
[349483543,1737210643632,-500.0,0.00021917,3]
[349483544,1737210643642,-500.0,0.00021917,3]
[349483545,1737210643652,-451.03982826,0.00021917,3]
[349483546,1737210643662,-500.0,0.00021917,3]
[349483547,1737210643672,-500.0,0.00021917,3]
[349483548,1737210643682,-500.0,0.00021917,3]
[349483549,1737210643691,-500.0,0.00021917,3]
[349483550,1737210643700,-174.90833228,0.00021917,3]
[349483551,1737210643709,-500.0,0.00021917,3]
[349483552,1737210643718,-266.00557281,0.00021917,3]
[349483553,1737210643728,-500.0,0.00021917,3]
[349483554,1737210643738,-500.0,0.00021917,3]
[349483555,1737210643748,-500.0,0.00021917,3]
[349483556,1737210643757,-500.0,0.00021917,3]
[349483557,1737210643767,-500.0,0.00021917,3]
[349483558,1737210643776,-500.0,0.00021917,3]
[349483559,1737210643786,-500.0,0.00021917,3]
[349483560,1737210643795,-504.19553901,0.00021917,3]
[349483561,1737210643805,-500.0,0.00021917,3]
[349483562,1737210643814,-500.0,0.00021917,3]
[349483563,1737210643824,-500.0,0.00021917,3]
[349483564,1737210643833,-500.0,0.00021917,3]
[349483565,1737210643844,-500.0,0.00021917,3]
[349483566,1737210643853,-500.0,0.00021917,3]
[349483567,1737210643862,-500.0,0.00021917,3]
[349483568,1737210643872,-500.0,0.00021917,3]
[349483569,1737210643882,-2039.9,0.00021917,3]
[349483570,1737210643892,-500.0,0.00021917,3]
[349483571,1737210643904,-500.0,0.00021917,3]
[349483572,1737210643915,-500.0,0.00021917,3]
[349483573,1737210643926,-500.0,0.00021917,3]
[349483574,1737210643936,-500.0,0.00021917,3]
[349483575,1737210643946,-500.0,0.00021917,3]
[349483576,1737210643955,-500.0,0.00021917,3]
[349483577,1737210643965,-500.0,0.00021917,3]
[349483578,1737210643978,-500.0,0.00021917,3]
[349483579,1737210643988,-500.0,0.00021917,3]
[349483580,1737210643997,-514.65,0.00021917,3]
[349483581,1737210644007,-500.0,0.00021917,3]
[349483582,1737210644017,-500.0,0.00021917,3]
[349483583,1737210644026,-500.0,0.00021917,3]
[349483584,1737210644038,-500.0,0.00021917,3]
[349483585,1737210644048,-500.0,0.00021917,3]
[349483586,1737210644057,-500.0,0.00021917,3]
[349483587,1737210644067,-500.0,0.00021917,3]
[349483588,1737210644077,-500.0,0.00021917,3]
[349483589,1737210644087,-500.0,0.00021917,3]
[349483590,1737210644097,-500.0,0.00021917,3]
[349483591,1737210644107,-500.0,0.00021917,3]
[349483592,1737210644116,-500.0,0.00021917,3]
[349483593,1737210644126,-500.0,0.00021917,3]
[349483594,1737210644135,-206.78032551,0.00021917,3]
[349483595,1737210644145,-1951.8,0.00021917,3]
[349483596,1737210644154,-723.11,0.00021917,3]
[349483597,1737210644164,-509.85858788,0.00021917,3]
[349483598,1737210644174,-500.0,0.00021917,3]
[349483599,1737210644183,-500.0,0.00021917,3]